[Event "RUS-ch Boys U21 2021"]
[Site "Loo"]
[Date "2021.04.21"]
[Round "1.3"]
[White "Golikov, Daniil"]
[Black "Murzin, Volodar"]
[Result "0-1"]
[ECO "E73"]
[WhiteElo "2250"]
[BlackElo "2478"]
[Annotator "ChessBase"]
[PlyCount "70"]
[EventDate "2021.04.21"]
[EventType "swiss"]
[EventCountry "RUS"]
[SourceTitle "playchess.com"]
[Source "ChessBase"]
[SourceQuality "1"]
[TimeControl "40/5400+30:1800+30"]

1. d4 {[%emt 0:00:00]} Nf6 {[%emt 0:00:00]} 2. c4 {[%emt 0:00:00]} g6 {[%emt 0:00:00]} 3. Nc3 {[%emt 0:00:00]} d6 {[%emt 0:00:01]} 4. e4 {[%emt 0:00:06]} Bg7 {[%emt 0:00:06]} 5. Be2 {[%emt 0:00:04]} O-O {[%emt 0:00:56]} 6. Bg5 {[%emt 0:00:05]} h6 {[%emt 0:08:50]} 7. Be3 {[%emt 0:00:04]} e5 {[%emt 0:03:02]} 8. d5 {[%emt 0:00:56]} Na6 {[%emt 0:00:54]} 9. Qd2 {[%emt 0:00:36]} Nc5 {[%emt 0:06:55]} 10. f3 {[%emt 0:00:08]} a5 {[%emt 0:00:27]} 11. O-O-O {[%emt 0:02:56]} h5 {[%emt 0:02:42]} 12. h4 {[%emt 0:00:25]} a4 {[%emt 0:03:54]} 13. Nh3 {[%emt 0:02:46]} Bd7 {[%emt 0:04:19]} 14. Kb1 {[%emt 0:01:23]} c6 {[%emt 0:08:37]} 15. dxc6 {[%emt 0:05:27]} bxc6 {[%emt 0:00:09]} 16. Qxd6 {[%emt 0:05:05]} Ne6 {[%emt 0:00:22]} 17. f4 {[%emt 0:30:22]} Qa5 {[%emt 0:11:26]} 18. fxe5 {[%emt 0:20:40]} Rfb8 {[%emt 0:00:18]} 19. Bd2 {[%emt 0:02:45]} Bf8 {[%emt 0:25:35]} 20. Nd5 {[%emt 0:06:06]} Nxe4 {[%emt 0:05:35]} 21. Nf6+ {[%emt 0:00:55]} Nxf6 {[%emt 0:00:17]} 22. Qxb8 {[%emt 0:02:34]} Qa6 {[%emt 0:01:06]} 23. c5 {[%emt 0:00:31]} Qxe2 {[%emt 0:11:06]} 24. Qxa8 {[%emt 0:00:01]} Nd4 {[%emt 0:00:15]} 25. Rc1 {[%emt 0:02:52]} Qxd2 {[%emt 0:01:51]} 26. exf6 {[%emt 0:00:53]} Bf5+ {[%emt 0:01:24]} 27. Ka1 {[%emt 0:00:02]} Nc2+ {[%emt 0:00:04]} 28. Rxc2 {[%emt 0:00:05]} Bxc2 {[%emt 0:00:04]} 29. a3 {[%emt 0:13:48]} Bd1 {[%emt 0:02:54]} 30. Kb1 {[%emt 0:00:57]} Bc2+ {[%emt 0:00:54]} 31. Ka1 {[%emt 0:00:01]} Qxg2 {[%emt 0:00:41]} 32. Rc1 {[%emt 0:00:21]} Qd2 {[%emt 0:00:09]} 33. Rh1 {[%emt 0:03:04]} Bd1 {[%emt 0:00:37]} 34. Kb1 {[%emt 0:00:12]} Qc2+ {[%emt 0:00:41]} 35. Ka2 {[%emt 0:00:05]} Qc4+ {[%emt 0:00:04]} 0-1

[Event "RUS-ch Boys U21 2021"]
[Site "Loo"]
[Date "2021.04.21"]
[Round "1.5"]
[White "Makovich, Andrey"]
[Black "Shubin, Kirill"]
[Result "1/2-1/2"]
[ECO "A40"]
[WhiteElo "2171"]
[BlackElo "2466"]
[Annotator "ChessBase"]
[PlyCount "83"]
[EventDate "2021.04.21"]
[EventType "swiss"]
[EventCountry "RUS"]
[SourceTitle "playchess.com"]
[Source "ChessBase"]
[SourceQuality "1"]
[TimeControl "40/5400+30:1800+30"]

1. d4 {[%emt 0:00:00]} e6 {[%emt 0:00:00]} 2. Nf3 {[%emt 0:00:00]} Nf6 {[%emt 0:00:00]} 3. Bf4 {[%emt 0:00:00]} b6 {[%emt 0:00:00]} 4. e3 {[%emt 0:00:00]} Bb7 {[%emt 0:00:01]} 5. Nbd2 {[%emt 0:00:00]} d6 {[%emt 0:00:07]} 6. h3 {[%emt 0:00:10]} Nbd7 {[%emt 0:00:06]} 7. Be2 {[%emt 0:01:45]} h6 {[%emt 0:01:25]} 8. Bh2 {[%emt 0:01:04]} g5 {[%emt 0:00:12]} 9. c4 {[%emt 0:00:20]} Rg8 {[%emt 0:02:18]} 10. Qb3 {[%emt 0:00:39]} Bg7 {[%emt 0:05:34]} 11. O-O-O {[%emt 0:01:23]} Qe7 {[%emt 0:00:11]} 12. Qa3 {[%emt 0:05:55]} a5 {[%emt 0:07:32]} 13. Kb1 {[%emt 0:00:33]} a4 {[%emt 0:02:23]} 14. Rc1 {[%emt 0:00:54]} c5 {[%emt 0:08:26]} 15. Bd3 {[%emt 0:12:20]} Bh8 {[%emt 0:05:20]} 16. Bc2 {[%emt 0:00:38]} Kf8 {[%emt 0:06:54]} 17. e4 {[%emt 0:03:55]} Nh5 {[%emt 0:05:16]} 18. d5 {[%emt 0:09:37]} Nf4 {[%emt 0:01:43]} 19. h4 {[%emt 0:08:35]} Qf6 {[%emt 0:04:55]} 20. hxg5 {[%emt 0:00:22]} hxg5 {[%emt 0:00:06]} 21. Rce1 {[%emt 0:09:59]} g4 {[%emt 0:04:41]} 22. e5 {[%emt 0:05:51]} dxe5 {[%emt 0:01:07]} 23. Ne4 {[%emt 0:08:02]} Qe7 {[%emt 0:00:06]} 24. Bxf4 {[%emt 0:01:16]} exf4 {[%emt 0:01:23]} 25. Nfg5 {[%emt 0:00:10]} Bd4 {[%emt 0:03:57]} 26. Nxf7 {[%emt 0:02:46]} Kxf7 {[%emt 0:03:41]} 27. Rh7+ {[%emt 0:02:54]} Rg7 {[%emt 0:00:06]} 28. dxe6+ {[%emt 0:00:06]} Kg8 {[%emt 0:03:09]} 29. Rxg7+ {[%emt 0:01:36]} Qxg7 {[%emt 0:00:43]} 30. exd7 {[%emt 0:00:06]} Qxd7 {[%emt 0:00:12]} 31. Qd3 {[%emt 0:00:48]} Qe7 {[%emt 0:03:05]} 32. Qd1 {[%emt 0:02:27]} a3 {[%emt 0:06:21]} 33. Qxg4+ {[%emt 0:00:22]} Bg7 {[%emt 0:00:04]} 34. Re2 {[%emt 0:01:25]} f3 {[%emt 0:05:52]} 35. gxf3 {[%emt 0:00:53]} Qe5 {[%emt 0:03:45]} 36. Nc3 {[%emt 0:00:21]} Qf6 {[%emt 0:01:37]} 37. Qe6+ {[%emt 0:06:55]} Qxe6 {[%emt 0:00:04]} 38. Rxe6 {[%emt 0:00:02]} Bxf3 {[%emt 0:01:14]} 39. Bg6 {[%emt 0:02:14]} Bd4 {[%emt 0:03:02]} 40. Re8+ {[%emt 0:00:00]} Rxe8 {[%emt 0:00:00]} 41. Bxe8 {[%emt 0:00:35]} Bxc3 {[%emt 0:04:23]} 42. bxc3 1/2-1/2

[Event "RUS-ch Boys U21 2021"]
[Site "Loo"]
[Date "2021.04.21"]
[Round "1.7"]
[White "Sidorov, Dmitry I"]
[Black "Dudin, Gleb"]
[Result "0-1"]
[ECO "A21"]
[WhiteElo "2139"]
[BlackElo "2418"]
[Annotator "ChessBase"]
[PlyCount "76"]
[EventDate "2021.04.21"]
[EventType "swiss"]
[EventCountry "RUS"]
[SourceTitle "playchess.com"]
[Source "ChessBase"]
[SourceQuality "1"]
[TimeControl "40/5400+30:1800+30"]

1. c4 {[%emt 0:00:00]} e5 {[%emt 0:02:08]} 2. Nc3 {[%emt 0:00:00]} Bb4 {[%emt 0:00:13]} 3. g3 {[%emt 0:02:17]} Bxc3 {[%emt 0:00:11]} 4. bxc3 {[%emt 0:00:34]} Nc6 {[%emt 0:00:49]} 5. Bg2 {[%emt 0:00:14]} d6 {[%emt 0:00:23]} 6. d3 {[%emt 0:00:30]} f5 {[%emt 0:00:45]} 7. Nh3 {[%emt 0:05:23]} Nf6 {[%emt 0:02:47]} 8. O-O {[%emt 0:00:23]} O-O {[%emt 0:01:33]} 9. Rb1 {[%emt 0:01:58]} Qe8 {[%emt 0:07:38]} 10. c5 {[%emt 0:13:41]} dxc5 {[%emt 0:53:41]} 11. Rxb7 {[%emt 0:05:22]} Bxb7 {[%emt 0:09:11]} 12. Qb3+ {[%emt 0:00:04]} Kh8 {[%emt 0:02:56]} 13. Qxb7 {[%emt 0:00:19]} e4 {[%emt 0:00:04]} 14. Ba3 {[%emt 0:02:58]} Qd7 {[%emt 0:05:07]} 15. Bxc5 {[%emt 0:09:33]} Rfb8 {[%emt 0:00:09]} 16. Qa6 {[%emt 0:00:26]} Rb2 {[%emt 0:04:35]} 17. dxe4 {[%emt 0:07:45]} Nxe4 {[%emt 0:01:31]} 18. Be3 {[%emt 0:00:48]} Re8 {[%emt 0:01:39]} 19. Nf4 {[%emt 0:10:55]} Ne5 {[%emt 0:01:18]} 20. Bd4 {[%emt 0:01:52]} Qc6 {[%emt 0:01:01]} 21. Qa5 {[%emt 0:09:00]} Rb5 {[%emt 0:00:11]} 22. Qa4 {[%emt 0:02:55]} Rb1 {[%emt 0:00:27]} 23. Qa5 {[%emt 0:01:42]} Rb5 {[%emt 0:01:40]} 24. Qa4 {[%emt 0:00:07]} Rb6 {[%emt 0:01:29]} 25. Qc2 {[%emt 0:04:44]} Rbb8 {[%emt 0:00:11]} 26. f3 {[%emt 0:02:27]} Nd6 {[%emt 0:00:23]} 27. Bxa7 {[%emt 0:04:50]} Ra8 {[%emt 0:00:43]} 28. Bd4 {[%emt 0:01:03]} Qc4 {[%emt 0:00:07]} 29. Ra1 {[%emt 0:11:28]} Nc6 {[%emt 0:00:32]} 30. Bf2 {[%emt 0:00:37]} Ra3 {[%emt 0:00:24]} 31. e4 {[%emt 0:00:55]} Rxc3 {[%emt 0:00:40]} 32. Qd1 {[%emt 0:00:19]} fxe4 {[%emt 0:00:37]} 33. fxe4 {[%emt 0:00:44]} Nxe4 {[%emt 0:00:23]} 34. Be1 {[%emt 0:00:30]} Qc5+ {[%emt 0:00:45]} 35. Kh1 {[%emt 0:00:19]} Re3 {[%emt 0:00:17]} 36. Rc1 {[%emt 0:00:45]} Rxe1+ {[%emt 0:00:19]} 37. Qxe1 {[%emt 0:00:18]} Nf2+ {[%emt 0:00:07]} 38. Qxf2 {[%emt 0:00:12]} Qxf2 {[%emt 0:00:29]} 0-1

[Event "RUS-ch Boys U21 2021"]
[Site "Loo"]
[Date "2021.04.21"]
[Round "1.8"]
[White "Obgolts, Erik"]
[Black "Kyshtymov, Daniil"]
[Result "1-0"]
[ECO "E62"]
[WhiteElo "2414"]
[BlackElo "2137"]
[Annotator "ChessBase"]
[PlyCount "109"]
[EventDate "2021.04.21"]
[EventType "swiss"]
[EventCountry "RUS"]
[SourceTitle "playchess.com"]
[Source "ChessBase"]
[SourceQuality "1"]
[TimeControl "40/5400+30:1800+30"]

1. d4 {[%emt 0:00:00]} Nf6 {[%emt 0:00:00]} 2. Nf3 {[%emt 0:00:00]} g6 {[%emt 0:00:00]} 3. g3 {[%emt 0:00:00]} Bg7 {[%emt 0:00:00]} 4. Bg2 {[%emt 0:00:03]} O-O {[%emt 0:00:03]} 5. O-O {[%emt 0:00:18]} d6 {[%emt 0:00:07]} 6. c4 {[%emt 0:00:07]} Nc6 {[%emt 0:00:33]} 7. Nc3 {[%emt 0:00:06]} Bg4 {[%emt 0:00:26]} 8. d5 {[%emt 0:00:33]} Na5 {[%emt 0:00:09]} 9. Qd3 {[%emt 0:00:14]} c5 {[%emt 0:29:06]} 10. h3 {[%emt 0:00:14]} Bd7 {[%emt 0:01:23]} 11. e4 {[%emt 0:00:17]} e5 {[%emt 0:03:29]} 12. dxe6 {[%emt 0:00:33]} Bxe6 {[%emt 0:00:08]} 13. b3 {[%emt 0:00:10]} a6 {[%emt 0:13:22]} 14. Ng5 {[%emt 0:10:46]} Bd7 {[%emt 0:16:03]} 15. Be3 {[%emt 0:14:48]} Bc6 {[%emt 0:07:54]} 16. Rad1 {[%emt 0:04:00]} h6 {[%emt 0:11:13]} 17. Nf3 {[%emt 0:00:16]} Re8 {[%emt 0:00:45]} 18. Nd2 {[%emt 0:03:13]} Rb8 {[%emt 0:03:20]} 19. a3 {[%emt 0:05:36]} b5 {[%emt 0:07:10]} 20. b4 {[%emt 0:13:21]} Nxc4 {[%emt 0:00:39]} 21. Nxc4 {[%emt 0:00:11]} bxc4 {[%emt 0:00:03]} 22. Qxc4 {[%emt 0:00:06]} Bb5 {[%emt 0:00:47]} 23. Nxb5 {[%emt 0:00:08]} axb5 {[%emt 0:00:04]} 24. Qd3 {[%emt 0:05:39]} Qe7 {[%emt 0:03:40]} 25. bxc5 {[%emt 0:08:58]} dxc5 {[%emt 0:00:12]} 26. e5 {[%emt 0:00:09]} Nh7 {[%emt 0:00:57]} 27. Bc6 {[%emt 0:03:40]} Red8 {[%emt 0:01:01]} 28. Qc2 {[%emt 0:00:23]} c4 {[%emt 0:00:53]} 29. Rxd8+ {[%emt 0:00:17]} Qxd8 {[%emt 0:00:31]} 30. e6 {[%emt 0:02:13]} Qf6 {[%emt 0:00:29]} 31. exf7+ {[%emt 0:01:23]} Qxf7 {[%emt 0:00:08]} 32. Be4 {[%emt 0:01:18]} Nf8 {[%emt 0:00:22]} 33. Rd1 {[%emt 0:00:10]} Qf6 {[%emt 0:01:01]} 34. a4 {[%emt 0:01:46]} bxa4 {[%emt 0:00:30]} 35. Qxc4+ {[%emt 0:00:09]} Kh7 {[%emt 0:00:07]} 36. Qxa4 {[%emt 0:00:07]} Rd8 {[%emt 0:00:49]} 37. Rb1 {[%emt 0:00:28]} Qe6 {[%emt 0:00:27]} 38. h4 {[%emt 0:00:20]} Qg4 {[%emt 0:00:37]} 39. Qc2 {[%emt 0:02:17]} Re8 {[%emt 0:00:28]} 40. Rb4 {[%emt 0:00:00]} Kh8 {[%emt 0:00:00]} 41. Rc4 {[%emt 0:01:01]} Rd8 {[%emt 0:07:04]} 42. Kg2 {[%emt 0:00:34]} Qe6 {[%emt 0:09:10]} 43. Bf3 {[%emt 0:02:53]} Qf6 {[%emt 0:02:00]} 44. Rg4 {[%emt 0:02:36]} Qe6 {[%emt 0:06:41]} 45. Re4 {[%emt 0:00:58]} Qf6 {[%emt 0:00:20]} 46. Qc4 {[%emt 0:01:28]} Qd6 {[%emt 0:02:19]} 47. Qc1 {[%emt 0:03:02]} Kh7 {[%emt 0:00:30]} 48. Rc4 {[%emt 0:00:20]} Nd7 {[%emt 0:02:38]} 49. Rc6 {[%emt 0:00:49]} Qf8 {[%emt 0:00:13]} 50. Rc7 {[%emt 0:02:57]} Ne5 {[%emt 0:04:08]} 51. Be4 {[%emt 0:00:15]} h5 {[%emt 0:00:59]} 52. Qc2 {[%emt 0:01:38]} Qd6 {[%emt 0:00:29]} 53. Bf4 {[%emt 0:01:03]} Re8 {[%emt 0:00:32]} 54. Rc6 {[%emt 0:00:55]} Qf8 {[%emt 0:00:30]} 55. Bxe5 {[%emt 0:00:33]} 1-0

[Event "RUS-ch Boys U21 2021"]
[Site "Loo"]
[Date "2021.04.21"]
[Round "1.9"]
[White "Babanin, Gleb"]
[Black "Tsvetkov, Andrey"]
[Result "0-1"]
[ECO "D02"]
[WhiteElo "2123"]
[BlackElo "2404"]
[Annotator "ChessBase"]
[PlyCount "124"]
[EventDate "2021.04.21"]
[EventType "swiss"]
[EventCountry "RUS"]
[SourceTitle "playchess.com"]
[Source "ChessBase"]
[SourceQuality "1"]
[TimeControl "40/5400+30:1800+30"]

1. d4 {[%emt 0:00:00]} d5 {[%emt 0:00:00]} 2. Nf3 {[%emt 0:00:00]} Nf6 {[%emt 0:00:00]} 3. Bf4 {[%emt 0:00:00]} c5 {[%emt 0:00:19]} 4. e3 {[%emt 0:00:00]} Nc6 {[%emt 0:00:11]} 5. Nbd2 {[%emt 0:00:00]} Qb6 {[%emt 0:00:29]} 6. dxc5 {[%emt 0:00:18]} Qxb2 {[%emt 0:00:07]} 7. Rb1 {[%emt 0:00:05]} Qc3 {[%emt 0:00:05]} 8. Bb5 {[%emt 0:00:14]} e6 {[%emt 0:04:44]} 9. O-O {[%emt 0:00:51]} Be7 {[%emt 0:08:05]} 10. Nd4 {[%emt 0:02:25]} Bd7 {[%emt 0:04:26]} 11. N2b3 {[%emt 0:03:11]} Ne4 {[%emt 0:12:18]} 12. Bd3 {[%emt 0:16:07]} a6 {[%emt 0:10:32]} 13. a3 {[%emt 0:55:38]} Rd8 {[%emt 0:06:51]} 14. Bc7 {[%emt 0:06:39]} Rc8 {[%emt 0:04:15]} 15. Bb6 {[%emt 0:00:57]} Bf6 {[%emt 0:15:07]} 16. Nxc6 {[%emt 0:02:55]} Rxc6 {[%emt 0:20:59]} 17. f3 {[%emt 0:00:10]} Rxb6 {[%emt 0:00:38]} 18. cxb6 {[%emt 0:00:05]} Nd6 {[%emt 0:00:05]} 19. Qe1 {[%emt 0:00:52]} Qc8 {[%emt 0:01:13]} 20. e4 {[%emt 0:01:22]} dxe4 {[%emt 0:01:35]} 21. fxe4 {[%emt 0:00:11]} Be5 {[%emt 0:00:30]} 22. Nd2 {[%emt 0:01:25]} O-O {[%emt 0:01:31]} 23. Nf3 {[%emt 0:00:12]} Bc3 {[%emt 0:00:03]} 24. Qg3 {[%emt 0:01:42]} e5 {[%emt 0:00:19]} 25. Kh1 {[%emt 0:02:20]} f6 {[%emt 0:01:24]} 26. Qf2 {[%emt 0:01:41]} Be6 {[%emt 0:01:15]} 27. Rbd1 {[%emt 0:01:25]} Rd8 {[%emt 0:01:33]} 28. h3 {[%emt 0:00:21]} Qc6 {[%emt 0:00:28]} 29. Qe3 {[%emt 0:01:08]} Ba5 {[%emt 0:01:05]} 30. Rb1 {[%emt 0:00:13]} Qc3 {[%emt 0:01:07]} 31. Nh4 {[%emt 0:01:36]} Rd7 {[%emt 0:03:38]} 32. Qe2 {[%emt 0:00:32]} Qxa3 {[%emt 0:00:24]} 33. Nf5 {[%emt 0:00:23]} Qc5 {[%emt 0:00:03]} 34. Nxd6 {[%emt 0:00:31]} Rxd6 {[%emt 0:00:03]} 35. Bxa6 {[%emt 0:00:21]} Bxb6 {[%emt 0:00:48]} 36. Bd3 {[%emt 0:00:37]} Qc7 {[%emt 0:00:33]} 37. Rb5 {[%emt 0:00:33]} Bd4 {[%emt 0:00:27]} 38. Rfb1 {[%emt 0:00:45]} b6 {[%emt 0:00:21]} 39. R5b4 {[%emt 0:00:26]} Kh8 {[%emt 0:00:47]} 40. Bc4 {[%emt 0:00:00]} Bd7 {[%emt 0:00:00]} 41. Bd5 {[%emt 0:07:08]} g6 {[%emt 0:04:33]} 42. R4b3 {[%emt 0:05:51]} Kg7 {[%emt 0:12:21]} 43. Ra3 {[%emt 0:01:44]} f5 {[%emt 0:02:07]} 44. c4 {[%emt 0:02:00]} f4 {[%emt 0:01:20]} 45. Ra8 {[%emt 0:01:50]} Rf6 {[%emt 0:04:23]} 46. Rb3 {[%emt 0:05:50]} Kh6 {[%emt 0:01:48]} 47. Rf3 {[%emt 0:02:11]} Qd6 {[%emt 0:03:05]} 48. Kh2 {[%emt 0:03:10]} g5 {[%emt 0:01:46]} 49. Rg8 {[%emt 0:00:59]} Rf8 {[%emt 0:00:07]} 50. Rxf8 {[%emt 0:00:29]} Qxf8 {[%emt 0:00:01]} 51. Rb3 {[%emt 0:00:43]} g4 {[%emt 0:01:28]} 52. Rd3 {[%emt 0:04:00]} Kg6 {[%emt 0:01:43]} 53. Rxd4 {[%emt 0:01:35]} g3+ {[%emt 0:00:48]} 54. Kg1 {[%emt 0:00:07]} exd4 {[%emt 0:00:08]} 55. e5 {[%emt 0:00:23]} Bf5 {[%emt 0:01:06]} 56. Be4 {[%emt 0:00:55]} Bxe4 {[%emt 0:00:21]} 57. Qxe4+ {[%emt 0:00:01]} Qf5 {[%emt 0:00:00]} 58. Qc6+ {[%emt 0:00:11]} Kg5 {[%emt 0:00:25]} 59. Qxb6 {[%emt 0:00:44]} Qxe5 {[%emt 0:00:19]} 60. Qb5 {[%emt 0:01:14]} Qxb5 {[%emt 0:00:18]} 61. cxb5 d3 {[%emt 0:00:02]} 62. Kf1 {[%emt 0:00:15]} f3 {[%emt 0:00:01]} 0-1

[Event "RUS-ch Boys U21 2021"]
[Site "Loo"]
[Date "2021.04.21"]
[Round "1.10"]
[White "Stukan, Martin"]
[Black "Marchuk, Rostislav"]
[Result "1-0"]
[ECO "C41"]
[WhiteElo "2390"]
[BlackElo "2080"]
[Annotator "NA"]
[PlyCount "93"]
[EventDate "2021.04.21"]
[EventType "swiss"]
[EventCountry "RUS"]
[SourceTitle "playchess.com"]
[Source "ChessBase"]
[SourceQuality "1"]
[TimeControl "40/5400+30:1800+30"]

1. e4 {[%emt 0:00:00]} d6 {[%emt 0:00:00]} 2. d4 {[%emt 0:00:00]} Nf6 {[%emt 0:00:00]} 3. Nc3 {[%emt 0:00:00]} e5 {[%emt 0:00:00]} 4. Nf3 {[%emt 0:00:00]} Nbd7 {[%emt 0:00:00]} 5. Bc4 {[%emt 0:00:00]} Be7 {[%emt 0:00:00]} 6. O-O {[%emt 0:00:00]} O-O {[%emt 0:00:06]} 7. a4 {[%emt 0:00:00]} c6 {[%emt 0:00:04]} 8. Ba2 {[%emt 0:00:00]} a5 {[%emt 0:01:14]} 9. Qe2 {[%emt 0:00:20]} Qc7 {[%emt 0:04:52]} 10. Rd1 {[%emt 0:05:52]} Nb6 {[%emt 0:04:20]} 11. h3 {[%emt 0:07:11]} Nfd7 {[%emt 0:01:15]} 12. Bg5 {[%emt 0:17:18]} Re8 {[%emt 0:14:26]} 13. Bxe7 {[%emt 0:16:29]} Rxe7 {[%emt 0:00:19]} 14. Qd3 {[%emt 0:09:58]} Nf8 {[%emt 0:11:19]} 15. d5 {[%emt 0:11:36]} c5 {[%emt 0:12:06]} 16. Nd2 {[%emt 0:06:41]} Ng6 {[%emt 0:05:28]} 17. Bc4 {[%emt 0:00:16]} f5 {[%emt 0:08:41]} 18. Qe3 {[%emt 0:05:14]} Rf7 19. Bb5 Qe7 {[%emt 0:07:22]} 20. Kh2 {[%emt 0:11:16]} f4 {[%emt 0:11:07]} 21. Qd3 {[%emt 0:03:37]} f3 {[%emt 0:03:25]} 22. g3 {[%emt 0:01:19]} Bxh3 {[%emt 0:06:52]} 23. Kxh3 {[%emt 0:01:07]} Raf8 {[%emt 0:00:42]} 24. Kh2 {[%emt 0:01:09]} Qg5 {[%emt 0:00:32]} 25. Rh1 {[%emt 0:01:32]} Rf4 {[%emt 0:02:30]} 26. Kg1 {[%emt 0:00:59]} Rg4 {[%emt 0:00:45]} 27. Nf1 {[%emt 0:00:57]} h5 {[%emt 0:00:25]} 28. Rh2 {[%emt 0:00:25]} h4 {[%emt 0:00:57]} 29. Kh1 {[%emt 0:00:06]} Rf6 {[%emt 0:02:44]} 30. Be8 {[%emt 0:01:00]} Nf4 {[%emt 0:00:42]} 31. Qxf3 {[%emt 0:00:29]} hxg3 {[%emt 0:00:44]} 32. fxg3 {[%emt 0:00:13]} Nh5 {[%emt 0:01:26]} 33. Rxh5 {[%emt 0:00:28]} Rxf3 {[%emt 0:00:35]} 34. Rxg5 {[%emt 0:00:03]} Rxg5 {[%emt 0:00:03]} 35. Kg2 {[%emt 0:00:03]} Rf4 {[%emt 0:00:53]} 36. Ne3 {[%emt 0:00:26]} Kf8 {[%emt 0:00:16]} 37. Bb5 {[%emt 0:00:11]} g6 {[%emt 0:00:45]} 38. Rf1 {[%emt 0:01:42]} Kf7 {[%emt 0:01:09]} 39. Rf3 {[%emt 0:00:19]} Rxf3 {[%emt 0:00:26]} 40. Kxf3 {[%emt 0:00:00]} Rh5 {[%emt 0:00:00]} 41. Kg2 {[%emt 0:00:17]} Ke7 {[%emt 0:00:45]} 42. b3 {[%emt 0:00:30]} Rh8 {[%emt 0:00:15]} 43. Nb1 {[%emt 0:01:15]} Kd8 {[%emt 0:00:33]} 44. Be2 {[%emt 0:00:13]} Rh7 {[%emt 0:00:51]} 45. Na3 {[%emt 0:00:07]} Rf7 {[%emt 0:00:53]} 46. Nac4 {[%emt 0:00:20]} Nxc4 {[%emt 0:00:59]} 47. Nxc4 {[%emt 0:00:01]} 1-0

[Event "RUS-ch Boys U21 2021"]
[Site "Loo"]
[Date "2021.04.21"]
[Round "1.11"]
[White "Marchenko, Nikolay"]
[Black "Pavlov, Danila"]
[Result "1-0"]
[ECO "A45"]
[WhiteElo "2062"]
[BlackElo "2360"]
[Annotator "NA"]
[PlyCount "65"]
[EventDate "2021.04.21"]
[EventType "swiss"]
[EventCountry "RUS"]
[SourceTitle "playchess.com"]
[Source "ChessBase"]
[SourceQuality "1"]
[TimeControl "40/5400+30:1800+30"]

1. d4 {[%emt 0:00:00]} Nf6 {[%emt 0:04:51]} 2. Bf4 {[%emt 0:00:00]} g6 {[%emt 0:00:09]} 3. Nc3 {[%emt 0:00:11]} Bg7 {[%emt 0:00:05]} 4. e4 {[%emt 0:00:21]} d6 {[%emt 0:00:12]} 5. Qd2 {[%emt 0:00:10]} c6 {[%emt 0:03:55]} 6. Bh6 {[%emt 0:07:28]} O-O {[%emt 0:00:33]} 7. Bxg7 {[%emt 0:07:23]} Kxg7 {[%emt 0:00:04]} 8. f4 {[%emt 0:00:04]} b5 {[%emt 0:06:12]} 9. e5 {[%emt 0:00:53]} dxe5 {[%emt 0:01:28]} 10. fxe5 {[%emt 0:00:26]} Nd5 {[%emt 0:00:39]} 11. Nf3 {[%emt 0:07:06]} Nxc3 {[%emt 0:07:48]} 12. bxc3 {[%emt 0:03:08]} Be6 {[%emt 0:08:26]} 13. Bd3 {[%emt 0:04:26]} Bd5 {[%emt 0:01:01]} 14. h4 {[%emt 0:05:11]} h5 {[%emt 0:00:48]} 15. O-O {[%emt 0:00:16]} Na6 {[%emt 0:12:17]} 16. Ng5 {[%emt 0:09:55]} Qd7 {[%emt 0:13:56]} 17. Rae1 {[%emt 0:06:00]} Nc7 {[%emt 0:00:28]} 18. Re3 {[%emt 0:10:15]} f6 {[%emt 0:26:16]} 19. exf6+ {[%emt 0:05:37]} exf6 {[%emt 0:00:13]} 20. Nh3 {[%emt 0:00:06]} f5 {[%emt 0:07:30]} 21. Rg3 {[%emt 0:04:02]} Ne6 {[%emt 0:02:30]} 22. Rxf5 {[%emt 0:01:22]} Qe8 {[%emt 0:00:30]} 23. Rxh5 {[%emt 0:02:53]} Kf6 {[%emt 0:00:56]} 24. Bxg6 {[%emt 0:03:38]} Qb8 {[%emt 0:00:05]} 25. Re5 {[%emt 0:03:41]} Ke7 {[%emt 0:00:26]} 26. Ng5 {[%emt 0:01:45]} Kd7 {[%emt 0:00:20]} 27. Nxe6 {[%emt 0:00:49]} Bxe6 28. Be4 {[%emt 0:00:45]} Qd6 {[%emt 0:00:51]} 29. Rg7+ {[%emt 0:01:11]} Rf7 {[%emt 0:00:02]} 30. Rxf7+ {[%emt 0:00:07]} Bxf7 {[%emt 0:00:06]} 31. Qf4 {[%emt 0:00:32]} Bxa2 {[%emt 0:00:59]} 32. Bf5+ {[%emt 0:00:05]} Kd8 {[%emt 0:00:03]} 33. Re8+ {[%emt 0:00:05]} 1-0

[Event "RUS-ch Boys U21 2021"]
[Site "Loo"]
[Date "2021.04.21"]
[Round "1.12"]
[White "Makoveev, Ilya"]
[Black "Koliev, Irlan"]
[Result "1-0"]
[ECO "E68"]
[WhiteElo "2315"]
[BlackElo "2023"]
[Annotator "NA"]
[PlyCount "75"]
[EventDate "2021.04.21"]
[EventType "swiss"]
[EventCountry "RUS"]
[SourceTitle "playchess.com"]
[Source "ChessBase"]
[SourceQuality "1"]
[TimeControl "40/5400+30:1800+30"]

1. d4 {[%emt 0:00:00]} Nf6 {[%emt 0:00:00]} 2. c4 {[%emt 0:00:00]} g6 {[%emt 0:00:00]} 3. g3 {[%emt 0:00:22]} Bg7 {[%emt 0:01:28]} 4. Bg2 {[%emt 0:00:29]} O-O {[%emt 0:00:18]} 5. Nc3 {[%emt 0:00:32]} d6 {[%emt 0:02:06]} 6. Nf3 {[%emt 0:01:09]} Nbd7 {[%emt 0:02:09]} 7. O-O {[%emt 0:00:33]} e5 {[%emt 0:00:09]} 8. e4 {[%emt 0:00:24]} exd4 {[%emt 0:02:25]} 9. Nxd4 {[%emt 0:00:06]} Nc5 {[%emt 0:00:10]} 10. h3 {[%emt 0:02:13]} Re8 {[%emt 0:00:43]} 11. Re1 {[%emt 0:00:40]} a5 {[%emt 0:00:47]} 12. Qc2 {[%emt 0:13:13]} Bd7 {[%emt 0:09:25]} 13. Be3 {[%emt 0:11:41]} a4 {[%emt 0:05:54]} 14. Rad1 {[%emt 0:07:22]} Qc8 {[%emt 0:16:58]} 15. g4 {[%emt 0:03:42]} h5 {[%emt 0:05:55]} 16. f3 {[%emt 0:03:44]} a3 {[%emt 0:12:25]} 17. b3 {[%emt 0:01:18]} Ne6 {[%emt 0:02:42]} 18. Nce2 {[%emt 0:05:35]} Nh7 {[%emt 0:13:19]} 19. gxh5 {[%emt 0:10:21]} Nxd4 {[%emt 0:01:43]} 20. Bxd4 {[%emt 0:00:07]} Bxd4+ {[%emt 0:07:08]} 21. Rxd4 {[%emt 0:01:43]} Bxh3 {[%emt 0:03:37]} 22. hxg6 {[%emt 0:07:17]} fxg6 {[%emt 0:00:42]} 23. Nf4 {[%emt 0:01:01]} Bxg2 {[%emt 0:04:32]} 24. Qxg2 {[%emt 0:00:34]} g5 {[%emt 0:03:17]} 25. Rd5 {[%emt 0:03:59]} Re5 {[%emt 0:00:40]} 26. Kf2 {[%emt 0:05:05]} Qd8 {[%emt 0:03:11]} 27. Rh1 {[%emt 0:01:06]} Qf6 {[%emt 0:00:37]} 28. Qh3 {[%emt 0:04:08]} Re7 {[%emt 0:00:42]} 29. Ne2 {[%emt 0:01:46]} Rg7 {[%emt 0:00:39]} 30. Rf5 {[%emt 0:02:20]} Qb2 {[%emt 0:00:06]} 31. Qh6 {[%emt 0:01:17]} Re8 {[%emt 0:00:07]} 32. Ke3 {[%emt 0:01:54]} Qxa2 {[%emt 0:00:17]} 33. Nd4 {[%emt 0:00:04]} Qb2 {[%emt 0:01:37]} 34. Ne6 {[%emt 0:00:08]} Qxb3+ {[%emt 0:00:05]} 35. Kf2 {[%emt 0:00:05]} Qb2+ {[%emt 0:00:03]} 36. Kg3 {[%emt 0:00:04]} Rge7 {[%emt 0:00:17]} 37. Qg6+ {[%emt 0:00:09]} Kh8 {[%emt 0:00:07]} 38. Rxh7+ {[%emt 0:00:04]} 1-0